bitfinex/quotes_BTCUSD_20240723
["timestamp","ask_amount","ask_price","bid_price","bid_amount"]
[1721749755507,0.078,66568.0,66567.0,0.150224]
[1721749755707,0.078,66568.0,66567.0,0.19208881]
[1721749755998,0.078,66568.0,66567.0,0.14701991]
[1721749756206,0.128,66568.0,66567.0,0.14701991]
[1721749757052,0.001,66561.0,66560.0,0.15724]
[1721749757280,0.001,66561.0,66560.0,0.92324391]
[1721749757436,0.001,66561.0,66560.0,1.24672391]
[1721749757638,0.07348942,66567.0,66560.0,0.18804391]
[1721749757919,0.07348942,66567.0,66566.0,0.150226]
[1721749758110,0.07348942,66567.0,66566.0,0.14701991]
[1721749758241,0.07348942,66567.0,66566.0,0.1617219]
[1721749758448,0.07348942,66567.0,66566.0,0.14701991]
[1721749758652,0.12348942,66567.0,66566.0,0.14701991]
[1721749758956,0.07848942,66567.0,66566.0,0.14701991]
[1721749759354,0.07848942,66567.0,66566.0,0.29724591]
[1721749759763,0.07348942,66567.0,66566.0,0.59769891]
[1721749760013,0.0661,66570.0,66569.0,0.45066]
[1721749760213,0.00847,66571.0,66570.0,0.150217]
[1721749760414,0.00847,66571.0,66570.0,0.89810691]
[1721749760675,0.00847,66571.0,66570.0,1.36850456]
[1721749761380,0.00847,66571.0,66570.0,1.75850456]
[1721749761735,0.00847,66571.0,66570.0,1.45806956]
[1721749762167,0.00847,66571.0,66570.0,1.75850456]
[1721749762368,0.00947,66571.0,66570.0,1.76250456]
[1721749762714,0.00847,66571.0,66570.0,1.75850456]
[1721749763677,0.00847,66571.0,66570.0,1.76550456]
[1721749763877,0.00847,66571.0,66570.0,1.75850456]
[1721749764074,0.00947,66571.0,66570.0,1.76250456]
[1721749764297,0.00947,66571.0,66570.0,1.77650456]
[1721749764642,0.00947,66571.0,66570.0,1.78760348]
[1721749764847,0.00947,66571.0,66570.0,1.94570348]
[1721749765050,0.00947,66571.0,66570.0,2.04570348]
[1721749765256,0.00947,66571.0,66570.0,2.34613848]
[1721749767573,0.00947,66571.0,66570.0,2.07940348]
[1721749767771,0.00947,66571.0,66570.0,2.04570348]
[1721749768397,0.00947,66571.0,66570.0,1.31720583]
[1721749769685,0.00947,66571.0,66570.0,0.71633583]
[1721749769887,0.00947,66571.0,66570.0,0.56611883]
[1721749770115,0.14727,66571.0,66570.0,0.17611883]
[1721749770938,0.14727,66571.0,66570.0,0.67442821]
[1721749771198,0.14727,66571.0,66570.0,0.61277083]
[1721749771437,0.00947,66571.0,66570.0,0.91320583]
[1721749771637,0.00947,66571.0,66570.0,1.24664083]
[1721749772089,0.01047,66571.0,66570.0,1.25064083]
[1721749772300,0.01047,66571.0,66570.0,1.36170491]
[1721749772508,0.00847,66571.0,66570.0,1.35770491]
[1721749772679,0.00947,66571.0,66570.0,1.37170491]
[1721749772884,0.00947,66571.0,66570.0,1.36170491]
[1721749772885,0.01047,66571.0,66570.0,1.36170491]
[1721749773642,0.00947,66571.0,66570.0,1.35770491]
[1721749774471,0.01047,66571.0,66570.0,1.37170491]
[1721749774877,0.01047,66571.0,66570.0,1.07126991]
[1721749775083,0.01047,66571.0,66570.0,0.32233583]
[1721749775293,0.01047,66571.0,66570.0,0.62277083]
[1721749775490,0.01147,66571.0,66570.0,0.62677083]
[1721749775839,0.01147,66571.0,66570.0,0.92720583]
[1721749776020,0.01247,66571.0,66570.0,0.93120583]
[1721749776220,0.01247,66571.0,66570.0,1.05437091]
[1721749776975,0.01247,66571.0,66570.0,0.75393591]
[1721749777308,0.01247,66571.0,66570.0,0.93120583]
[1721749778461,0.01247,66571.0,66570.0,0.18011883]
[1721749778867,0.16835926,66571.0,66570.0,0.18011883]
[1721749779072,0.16835926,66571.0,66570.0,0.33033583]
[1721749779281,0.20617,66571.0,66570.0,0.16901991]
[1721749779487,0.36205446,66571.0,66570.0,0.16901991]
[1721749780279,0.81270046,66571.0,66570.0,0.16901991]
[1721749780659,0.81270046,66571.0,66570.0,1e-08]
[1721749780859,0.36205446,66571.0,66570.0,1e-08]
[1721749781060,1.11313146,66571.0,66570.0,1e-08]
[1721749781269,1.44698882,66571.0,66570.0,1e-08]
[1721749781490,1.44699073,66571.0,66570.0,1e-08]
[1721749781698,1.44499073,66571.0,66570.0,1e-08]
[1721749781897,0.644993,66564.0,66563.0,0.3755]
[1721749782102,0.87436688,66564.0,66563.0,0.3755]
[1721749782510,1.57529088,66564.0,66563.0,0.3755]
[1721749782979,0.400476,66561.0,66541.0,0.300563]
[1721749783366,0.400476,66561.0,66531.0,0.019]
[1721749783367,0.0822,66551.0,66543.0,0.300553]
[1721749783518,0.0822,66551.0,66547.0,0.150268]
[1721749783519,0.15588446,66550.0,66547.0,0.150268]
[1721749783720,0.15588446,66549.0,66548.0,0.14701991]
[1721749783925,0.05,66548.0,66542.0,0.3755]
[1721749784105,0.15588446,66547.0,66543.0,0.22141991]
[1721749784305,0.1166,66549.0,66543.0,0.14701991]
[1721749784306,0.05,66545.0,66543.0,0.14701991]
[1721749784506,0.15588446,66544.0,66543.0,0.14701991]
[1721749785352,0.15588446,66544.0,66543.0,0.29729791]
[1721749785515,0.20588446,66544.0,66543.0,0.14701991]
[1721749785864,0.15588446,66544.0,66543.0,0.14701991]
[1721749786283,0.15688446,66544.0,66543.0,0.14701991]
[1721749786440,0.15688446,66544.0,66543.0,0.14794391]
[1721749786638,0.15688446,66544.0,66543.0,0.000924]
[1721749786639,0.50643746,66544.0,66543.0,0.000924]
[1721749786861,0.23178446,66544.0,66543.0,0.000924]
[1721749787086,0.43206046,66544.0,66543.0,0.000924]
[1721749787290,0.34508446,66544.0,66543.0,0.000924]
[1721749787466,0.29508446,66544.0,66543.0,0.000924]
[1721749787665,0.34508446,66544.0,66543.0,0.000924]
[1721749788679,0.49536046,66544.0,66543.0,0.000924]
[1721749788881,0.79691346,66544.0,66543.0,0.004924]
[1721749789113,0.49536046,66544.0,66543.0,0.000924]
[1721749789327,1.19646646,66544.0,66543.0,0.000924]
[1721749789470,1.19746646,66544.0,66543.0,0.004924]
[1721749789905,0.89691346,66544.0,66543.0,0.004924]
[1721749791226,1.19746646,66544.0,66543.0,0.004924]
[1721749791762,0.79691346,66544.0,66543.0,0.004924]
[1721749792177,0.34608446,66544.0,66543.0,0.004924]
[1721749792369,0.29608446,66544.0,66543.0,0.004924]
[1721749792566,0.29608446,66544.0,66543.0,0.155202]
[1721749792815,0.29608446,66544.0,66543.0,0.90333591]
[1721749792816,0.15688446,66544.0,66543.0,0.90333591]
[1721749793033,0.0637,66562.0,66553.0,0.300509]
[1721749793241,0.0628,66562.0,66561.0,0.450714]
[1721749793456,0.075,66567.0,66566.0,0.450679]
[1721749793673,0.075,66567.0,66543.0,0.004924]
[1721749793674,0.05,66550.0,66543.0,0.004924]
[1721749793866,0.07348942,66544.0,66543.0,0.01604512]
[1721749794076,0.07348942,66544.0,66543.0,0.004924]
[1721749794278,0.05,66557.0,66543.0,0.027924]
[1721749794479,0.07348942,66555.0,66544.0,0.17302089]
[1721749794711,0.15594608,66554.0,66553.0,0.150256]
[1721749794924,0.15594608,66554.0,66553.0,0.14701991]
[1721749795762,0.15594608,66554.0,66553.0,0.89829991]
[1721749795970,0.0767,66560.0,66555.0,0.150251]
[1721749796141,0.0767,66560.0,66553.0,0.44753191]
[1721749796142,0.15594061,66559.0,66556.0,0.29726691]
[1721749796393,0.15594061,66559.0,66556.0,0.14701991]
[1721749796604,0.05,66558.0,66556.0,0.14701991]
[1721749796804,0.15594061,66557.0,66556.0,0.14701991]
[1721749796915,0.15594061,66557.0,66556.0,0.3579479]
[1721749797121,0.15594061,66557.0,66556.0,0.2076989]
[1721749798155,0.15592973,66557.0,66556.0,0.2076989]
[1721749798354,0.15592973,66558.0,66556.0,0.3579479]
[1721749798585,0.15593364,66557.0,66556.0,0.29726891]
[1721749798786,0.003,66558.0,66557.0,0.450741]
[1721749798986,0.003,66558.0,66557.0,0.9880824]
[1721749799276,0.003,66558.0,66557.0,0.6875884]
[1721749799428,0.15592711,66561.0,66560.0,0.15024]
[1721749799640,0.15592711,66561.0,66560.0,0.29725991]
[1721749799844,0.15592711,66561.0,66560.0,0.36651685]
[1721749800055,0.15592711,66561.0,66560.0,0.89821991]
[1721749800285,0.0799,66567.0,66566.0,0.150226]
[1721749800501,0.15590739,66567.0,66566.0,0.44747291]
[1721749800704,0.05847,66571.0,66566.0,0.2218133]
[1721749800705,0.00847,66571.0,66566.0,0.2218133]
[1721749800982,0.00847,66571.0,66553.0,0.16927212]
[1721749800983,0.22939466,66570.0,66569.0,0.15022]
[1721749801148,0.22939466,66570.0,66553.0,0.16927212]
[1721749801149,0.05,66567.0,66553.0,0.01117212]
[1721749801320,0.07348942,66555.0,66554.0,0.92128691]
[1721749801520,0.05,66560.0,66557.0,0.004]
[1721749801727,0.1927,66558.0,66557.0,0.14701991]
[1721749801930,0.05,66555.0,66551.0,0.15026]
[1721749802150,0.07348942,66553.0,66552.0,0.14701991]
[1721749802548,0.07348942,66553.0,66552.0,0.29727791]
[1721749802753,0.1457,66558.0,66557.0,0.450741]
[1721749802754,0.003,66558.0,66557.0,0.450741]
[1721749803107,0.1119,66563.0,66559.0,0.150241]
[1721749803307,0.15592429,66562.0,66560.0,0.14701991]
[1721749803598,0.15592429,66562.0,66561.0,0.75119]
[1721749803818,0.15592429,66562.0,66561.0,0.89820991]
[1721749803957,0.15592429,66562.0,66561.0,0.98245362]
[1721749804164,0.07437,66571.0,66569.0,0.150219]
[1721749804515,0.00847,66571.0,66570.0,0.59767191]
[1721749804728,0.00847,66571.0,66570.0,0.89810691]
[1721749804957,0.00847,66571.0,66570.0,0.74788991]
[1721749805144,0.00847,66571.0,66570.0,0.59767191]
[1721749805349,0.00847,66571.0,66570.0,0.64798291]
[1721749805566,0.21436433,66571.0,66570.0,0.19733091]
[1721749805738,0.21536433,66571.0,66570.0,0.36154791]
[1721749805938,0.21536433,66571.0,66570.0,0.19733091]
[1721749806140,0.05947,66571.0,66570.0,0.19733091]
[1721749806374,0.01047,66571.0,66570.0,0.66198291]
[1721749806499,0.01047,66571.0,66570.0,0.36154791]
[1721749806500,0.06047,66571.0,66570.0,0.36154791]
[1721749806711,1.051447,66571.0,66570.0,0.014]
[1721749806907,1.50777185,66571.0,66570.0,0.014]
[1721749807319,1.74165535,66571.0,66570.0,0.014]
[1721749807556,1.20734085,66571.0,66570.0,0.014]
[1721749807769,1.20634085,66571.0,66570.0,0.014]
[1721749808125,1.20734085,66571.0,66570.0,0.025]
[1721749808250,1.20734085,66571.0,66559.0,0.300483]
[1721749808251,0.150224,66567.0,66559.0,0.150241]
[1721749808454,0.150224,66567.0,66559.0,0.29726091]
[1721749808455,0.07348942,66560.0,66559.0,0.29726091]
[1721749808678,0.300443,66569.0,66559.0,0.29726091]
[1721749808679,0.15737,66571.0,66559.0,0.23794459]
[1721749808893,0.07348942,66569.0,66564.0,0.30046]
[1721749809065,0.07348942,66569.0,66565.0,0.14701991]
[1721749809066,0.05,66567.0,66565.0,0.14701991]
[1721749809270,0.05,66567.0,66566.0,0.14701991]
[1721749809475,0.20591604,66567.0,66566.0,0.14701991]
[1721749810378,0.05,66560.0,66557.0,0.300491]
[1721749810600,0.05,66557.0,66552.0,0.01133965]
[1721749810809,0.07348942,66558.0,66555.0,0.3005]
[1721749811013,0.05,66562.0,66556.0,0.15002445]
[1721749811235,0.20591494,66561.0,66559.0,0.150241]
[1721749811494,0.05,66560.0,66558.0,0.150244]
[1721749811733,0.0635,66565.0,66557.0,0.30049]
[1721749811734,0.05,66562.0,66557.0,0.30049]
[1721749811961,0.05,66562.0,66556.0,0.14701991]
[1721749811962,0.0635,66565.0,66559.0,0.300484]
[1721749812177,0.15591342,66564.0,66562.0,0.150235]
[1721749812382,0.15591342,66564.0,66563.0,0.61274341]
[1721749812579,0.15591342,66564.0,66563.0,0.89818691]
[1721749812718,0.15591122,66564.0,66563.0,0.74795391]
[1721749812920,0.15591266,66566.0,66563.0,0.14701991]
[1721749813118,0.15591266,66565.0,66564.0,0.150231]
[1721749813319,0.15591266,66565.0,66564.0,0.59771291]
[1721749813520,0.05,66568.0,66567.0,0.150224]
[1721749813806,0.20591365,66568.0,66567.0,0.14701991]
[1721749814129,0.20591365,66568.0,66567.0,0.29724391]
[1721749814690,0.15591365,66568.0,66567.0,0.9879583]
[1721749814891,0.15591365,66568.0,66567.0,1.19859091]
[1721749815092,0.15590425,66570.0,66569.0,0.15022]
[1721749815319,0.15590425,66570.0,66569.0,0.45066]
[1721749815320,0.15590412,66570.0,66569.0,0.45066]
[1721749815513,0.15590412,66570.0,66569.0,0.89811991]
[1721749815720,0.15590412,66570.0,66569.0,1.19855991]
[1721749815921,0.15590412,66570.0,66569.0,1.0180759]
[1721749816490,0.15690412,66570.0,66569.0,1.0180759]
[1721749816699,0.15690412,66570.0,66569.0,0.7176359]
[1721749816928,0.15690412,66570.0,66569.0,0.4171959]
[1721749817273,0.15690412,66570.0,66556.0,0.300497]
[1721749817274,0.1131,66560.0,66543.0,0.000924]
[1721749817450,0.07348942,66550.0,66549.0,0.450794]
[1721749817721,0.15138942,66557.0,66549.0,0.450794]
[1721749817722,0.15138942,66557.0,66556.0,0.450747]
[1721749817930,0.15138942,66557.0,66556.0,0.89826491]
[1721749818138,0.07348942,66557.0,66556.0,0.89826491]
[1721749818487,0.07348942,66557.0,66556.0,0.59776691]
[1721749818665,0.07348942,66557.0,66556.0,0.657636]
[1721749819090,0.15138942,66564.0,66556.0,0.206889]
[1721749819268,0.07348942,66560.0,66559.0,0.150242]
[1721749819499,0.12348942,66567.0,66566.0,0.150226]
[1721749819656,0.22940352,66567.0,66566.0,0.59769891]
[1721749819867,0.22940352,66567.0,66566.0,0.29724591]
[1721749820090,0.27940352,66567.0,66566.0,0.29724591]
[1721749820488,0.27940352,66567.0,66566.0,0.14701991]
[1721749820691,0.27940352,66567.0,66537.0,0.07576085]
[1721749820692,0.05,66564.0,66558.0,0.300489]
[1721749820894,0.07348942,66560.0,66559.0,0.59774691]
[1721749821625,0.07348942,66560.0,66559.0,0.95840091]
[1721749822003,0.07448942,66560.0,66559.0,0.96840091]
[1721749822209,0.07448942,66560.0,66559.0,1.09843539]
[1721749822730,0.07348942,66567.0,66566.0,0.450679]
[1721749822939,0.07348942,66567.0,66566.0,0.59769891]
[1721749823271,0.22939789,66567.0,66566.0,0.59769891]
[1721749823478,0.22939789,66567.0,66566.0,0.7175621]
[1721749823679,0.27939789,66567.0,66566.0,0.4171091]
[1721749823885,0.27939789,66567.0,66566.0,0.14701991]
[1721749824138,0.27939789,66567.0,66566.0,0.29724591]
[1721749825095,0.27939789,66567.0,66566.0,0.14701991]
[1721749825523,0.27939789,66567.0,66566.0,0.30524591]
[1721749825845,0.23039789,66567.0,66566.0,0.30524591]
[1721749826047,0.15690847,66567.0,66566.0,1.3202217]
[1721749826268,0.15690847,66567.0,66566.0,1.22960491]
[1721749826467,0.15690847,66567.0,66566.0,1.25120556]
[1721749828094,0.15690847,66567.0,66566.0,1.27420556]
[1721749828293,0.15690847,66567.0,66566.0,1.42116821]
[1721749828901,0.15690847,66567.0,66566.0,1.42103501]
[1721749830236,0.001,66567.0,66566.0,1.72148801]
[1721749830438,0.001,66567.0,66566.0,1.87978801]
[1721749831100,0.00847,66571.0,66566.0,1.87978801]
[1721749831101,0.00531,66571.0,66570.0,1.510257]
[1721749831351,0.00531,66571.0,66570.0,2.16983585]
[1721749831532,0.00531,66571.0,66570.0,2.28973585]
[1721749831735,0.00531,66571.0,66570.0,2.36605733]
[1721749831941,0.00531,66571.0,66570.0,2.2452684]
[1721749832257,0.00531,66571.0,66570.0,1.98965674]
[1721749832858,0.00531,66571.0,66570.0,2.00365674]
[1721749833004,0.00531,66571.0,66570.0,2.29009174]
[1721749833208,0.00631,66571.0,66570.0,1.83135674]
[1721749833406,0.00631,66571.0,66570.0,1.84535674]
[1721749834644,0.00631,66571.0,66570.0,2.30409174]
[1721749835026,0.00631,66571.0,66570.0,2.29045138]
[1721749835233,0.00531,66571.0,66570.0,2.30445138]
[1721749835633,0.00847,66573.0,66572.0,1.810643]
[1721749835834,0.00847,66573.0,66572.0,2.12584589]
[1721749836518,0.00847,66573.0,66572.0,1.82541989]
[1721749837118,0.00947,66573.0,66572.0,1.82541989]
[1721749838024,0.00947,66573.0,66572.0,1.8249072]
[1721749838245,0.00947,66573.0,66572.0,1.98586985]
[1721749840549,0.00947,66573.0,66572.0,2.69586985]
[1721749840754,0.00947,66573.0,66572.0,2.85586985]
[1721749840974,0.00947,66573.0,66572.0,1.98586985]
[1721749841317,0.00947,66573.0,66572.0,1.9868814]
[1721749841519,0.00947,66573.0,66572.0,1.78289956]
[1721749841758,0.00947,66573.0,66572.0,1.828539]
[1721749842014,0.00947,66573.0,66572.0,1.104687]
[1721749842197,0.00947,66573.0,66572.0,0.16101991]
[1721749842198,0.20317,66573.0,66572.0,0.16101991]
[1721749842681,0.753803,66573.0,66572.0,0.014]
[1721749842929,0.05,66560.0,66559.0,0.060169]
[1721749843130,0.36718942,66560.0,66559.0,0.060169]
[1721749843348,0.51742942,66560.0,66559.0,0.060169]
[1721749843540,0.36718942,66560.0,66559.0,0.060169]
[1721749844130,0.1437,66560.0,66559.0,0.37847311]
[1721749844356,0.1437,66560.0,66559.0,0.95840091]
[1721749845267,0.1507,66560.0,66559.0,0.65791591]
[1721749845495,0.1507,66560.0,66559.0,0.45436062]
[1721749845746,0.2007,66560.0,66559.0,0.45436062]
[1721749845943,0.1937,66560.0,66559.0,0.060169]
[1721749846271,0.2937,66560.0,66559.0,0.060169]
[1721749846500,0.2937,66560.0,66559.0,0.069169]
[1721749846501,0.2947,66560.0,66559.0,0.069169]
[1721749846736,0.2957,66560.0,66559.0,0.069169]
[1721749848116,0.2967,66560.0,66559.0,0.060169]
[1721749848335,0.37018942,66560.0,66559.0,0.060169]
[1721749848537,0.36718942,66560.0,66559.0,0.060169]
[1721749849091,0.51742942,66560.0,66559.0,0.060169]
[1721749849291,0.05,66555.0,66554.0,0.01103212]
[1721749849441,0.05,66557.0,66555.0,0.150251]
[1721749849646,0.05,66557.0,66554.0,0.29727291]
[1721749849857,0.05,66557.0,66555.0,0.14249197]
[1721749850062,0.05,66557.0,66555.0,0.09594089]
[1721749850251,0.05,66557.0,66554.0,0.29727291]
[1721749850473,0.05,66557.0,66555.0,0.04649736]
[1721749850822,0.21818942,66560.0,66555.0,0.300502]
[1721749851031,0.21818942,66560.0,66559.0,0.751212]
[1721749851032,0.1447,66560.0,66559.0,0.751212]
[1721749851240,0.001,66560.0,66559.0,1.3203285]
[1721749851454,0.008,66560.0,66559.0,1.3212525]
[1721749851873,0.009,66560.0,66559.0,1.3272525]
[1721749852284,0.009,66560.0,66559.0,1.3212525]
[1721749852285,0.007,66560.0,66559.0,1.3212525]
[1721749853092,0.008,66560.0,66559.0,1.3302525]
[1721749853293,0.008,66560.0,66559.0,1.63089213]
[1721749853557,0.001,66560.0,66559.0,2.11267713]
[1721749853753,0.001,66560.0,66559.0,1.81219213]
[1721749853927,0.001,66560.0,66559.0,1.65389213]
[1721749854133,0.001,66560.0,66559.0,1.35340713]
[1721749854510,0.07348942,66569.0,66568.0,0.450666]
[1721749854718,0.07348942,66569.0,66568.0,1.00328811]
[1721749854897,0.00084,66571.0,66568.0,0.25217811]
[1721749855104,0.00084,66571.0,66570.0,1.051522]
[1721749855342,0.00084,66571.0,66570.0,1.19854191]
[1721749855546,0.00084,66571.0,66570.0,0.89810691]
[1721749856356,0.00184,66571.0,66570.0,0.89810691]
[1721749856782,0.00184,66571.0,66570.0,0.94475076]
[1721749857338,0.00184,66571.0,66570.0,1.29301699]
[1721749857457,0.00184,66571.0,66570.0,1.33966209]
[1721749857863,0.00184,66571.0,66570.0,1.35366209]
[1721749857864,0.00084,66571.0,66570.0,1.35366209]
[1721749858082,0.00184,66571.0,66570.0,1.03922709]
[1721749858312,0.00184,66571.0,66570.0,0.99258199]
[1721749858510,0.00084,66571.0,66570.0,1.00258199]
[1721749858926,0.00184,66571.0,66570.0,1.00258199]
[1721749859122,0.00184,66571.0,66570.0,0.99258199]
[1721749859524,0.00084,66571.0,66570.0,1.00658199]
[1721749859740,0.00184,66571.0,66570.0,1.00658199]
[1721749860109,0.00184,66571.0,66570.0,1.05008531]
[1721749860537,0.00184,66571.0,66570.0,1.0033867]
[1721749861114,0.00084,66571.0,66570.0,1.0033867]
[1721749861321,0.00084,66571.0,66570.0,1.05010588]
[1721749861756,0.00184,66571.0,66570.0,1.06380148]
[1721749861981,0.05184,66571.0,66570.0,0.6548914]
[1721749862178,0.05284,66571.0,66570.0,0.14701991]
[1721749862403,0.05,66560.0,66559.0,0.000924]
[1721749862594,0.1873,66560.0,66559.0,0.19451637]
[1721749863210,0.1373,66560.0,66559.0,0.19451637]
[1721749863411,0.1373,66560.0,66559.0,0.30917606]
[1721749863843,0.1373,66560.0,66559.0,0.65661996]
[1721749864045,0.1373,66560.0,66559.0,0.75233086]
[1721749864483,0.1373,66560.0,66559.0,0.40488696]
[1721749864891,0.1873,66560.0,66559.0,0.40488696]
[1721749865280,0.0751,66560.0,66559.0,1.05253725]
[1721749865493,0.1355,66566.0,66565.0,0.450687]
[1721749865621,0.1355,66566.0,66565.0,0.89816491]
[1721749865827,0.12348942,66569.0,66568.0,0.150222]
[1721749866088,0.05,66567.0,66566.0,0.150226]
[1721749866310,0.12348942,66569.0,66566.0,0.2067914]
[1721749866463,0.12348942,66569.0,66568.0,0.450666]
[1721749866683,0.00084,66571.0,66570.0,0.450652]
[1721749866880,0.05084,66571.0,66570.0,0.3870485]
[1721749867227,0.00084,66571.0,66570.0,0.64409191]
[1721749867438,0.00084,66571.0,66570.0,0.89810691]
[1721749867644,0.00084,66571.0,66570.0,1.0190618]
[1721749867848,0.00084,66571.0,66570.0,1.3194968]
[1721749868026,0.00084,66571.0,66570.0,1.36590073]
[1721749869056,0.00084,66571.0,66570.0,1.37290073]
[1721749869613,0.00084,66571.0,66570.0,0.77203073]
[1721749870428,0.00084,66571.0,66570.0,0.47159573]
[1721749870635,0.00084,66571.0,66570.0,0.007]
[1721749870636,0.22834,66571.0,66570.0,0.007]
[1721749870927,0.678986,66571.0,66570.0,0.007]
[1721749871256,1.1992215,66571.0,66570.0,0.007]
[1721749871453,0.742886,66571.0,66570.0,0.007]
[1721749871815,1.043317,66571.0,66570.0,0.007]
[1721749872213,1.20920947,66571.0,66570.0,0.007]
[1721749872616,0.05,66563.0,66559.0,0.16199824]
[1721749872866,0.81420942,66560.0,66559.0,0.000924]
[1721749873073,1.27061081,66560.0,66559.0,0.000924]
[1721749873270,1.27061081,66560.0,66552.0,0.000924]
[1721749873271,0.440256,66553.0,66552.0,0.000924]
[1721749873450,0.81425742,66553.0,66552.0,0.000924]
[1721749873644,0.97017881,66553.0,66552.0,0.000924]
[1721749873850,1.27069081,66553.0,66552.0,0.000924]
[1721749874045,0.97017881,66553.0,66552.0,0.000924]
[1721749874821,1.27069081,66553.0,66552.0,0.000924]
[1721749875033,0.97017881,66553.0,66552.0,0.000924]
[1721749875361,1.27069081,66553.0,66552.0,0.000924]
[1721749875562,0.97017881,66553.0,66552.0,0.000924]
[1721749876012,0.97017881,66553.0,66552.0,0.001924]
[1721749876013,1.27071254,66553.0,66552.0,0.001924]
[1721749876345,1.27471806,66553.0,66552.0,0.001924]
[1721749876867,0.97420606,66553.0,66552.0,0.001924]
[1721749877067,0.67369406,66553.0,66552.0,0.001924]
[1721749877260,0.44994864,66553.0,66552.0,0.001924]
[1721749877375,0.294,66553.0,66552.0,0.001924]
[1721749877583,0.44994834,66553.0,66552.0,0.001924]
[1721749877868,0.294,66553.0,66552.0,0.001924]
[1721749878499,0.744768,66553.0,66552.0,0.001924]
[1721749878648,0.444256,66553.0,66552.0,0.001924]
[1721749878854,0.44994755,66553.0,66552.0,0.001924]
[1721749879473,0.44994755,66553.0,66552.0,0.455703]
[1721749879474,0.144,66553.0,66552.0,0.455703]
[1721749879666,0.144,66553.0,66552.0,0.452698]
[1721749879868,0.144,66553.0,66552.0,0.67504151]
[1721749880089,0.004,66553.0,66552.0,0.97555751]
[1721749880633,0.004,66553.0,66552.0,1.27607351]
[1721749881232,0.004,66553.0,66552.0,1.34522235]
[1721749881425,0.15288942,66567.0,66566.0,0.751132]
[1721749881628,0.15288942,66567.0,66566.0,0.89815191]
[1721749881629,0.07348942,66567.0,66566.0,0.89815191]
[1721749881803,0.00144,66571.0,66570.0,0.751087]
[1721749882007,0.00144,66571.0,66570.0,1.19854191]
[1721749882225,0.00144,66571.0,66570.0,1.3183961]
[1721749884064,0.00244,66571.0,66570.0,1.3313961]
[1721749884864,0.00344,66571.0,66570.0,1.3313961]
[1721749885137,0.05344,66571.0,66570.0,0.16001991]
[1721749885342,1.048517,66571.0,66570.0,0.013]
[1721749886058,0.60256343,66571.0,66570.0,0.013]
[1721749886288,0.29644,66571.0,66570.0,0.013]
[1721749886508,0.150223,66568.0,66560.0,0.01074863]
[1721749886740,0.75878055,66571.0,66560.0,0.01074863]
[1721749886741,0.12348942,66562.0,66561.0,0.59773391]
[1721749886941,0.07348942,66569.0,66568.0,0.150222]
[1721749887152,0.08394,66571.0,66570.0,0.150217]
[1721749887357,0.08394,66571.0,66570.0,0.59767191]
[1721749887358,0.00244,66571.0,66570.0,0.59767191]
[1721749887621,0.00244,66571.0,66570.0,0.89810691]
[1721749887847,0.00244,66571.0,66570.0,0.9879176]
[1721749888238,0.00944,66571.0,66570.0,0.9879176]
[1721749888471,0.00944,66571.0,66570.0,0.59767191]
[1721749888675,0.05,66570.0,66569.0,0.15022]
[1721749888900,0.05,66570.0,66569.0,0.14701991]
[1721749889094,0.05,66570.0,66562.0,0.150235]
[1721749889095,0.05,66563.0,66562.0,0.150235]
[1721749889293,0.1,66564.0,66562.0,0.34212409]
[1721749889294,0.15,66564.0,66562.0,0.34212409]
[1721749889504,0.05,66564.0,66563.0,0.150233]
[1721749889714,0.05,66564.0,66563.0,0.08982159]
[1721749889715,0.15,66564.0,66563.0,0.08982159]
[1721749889922,0.05,66556.0,66555.0,0.01089241]
[1721749890125,0.05,66556.0,66552.0,0.000924]
[1721749890126,0.15,66553.0,66552.0,0.000924]
[1721749890350,0.15,66553.0,66552.0,0.04595899]
[1721749890547,0.15,66553.0,66552.0,0.000924]
[1721749892097,0.15,66553.0,66552.0,0.010924]
[1721749892305,0.151,66553.0,66552.0,0.010924]
[1721749892506,0.002,66553.0,66552.0,0.31020191]
[1721749892891,0.052,66553.0,66552.0,0.15994391]
[1721749893170,0.051,66553.0,66552.0,0.15794391]
[1721749893381,0.152,66553.0,66552.0,0.012924]
[1721749893582,0.052,66553.0,66552.0,0.013924]
[1721749893789,0.151,66553.0,66552.0,0.002924]
[1721749893995,0.449756,66553.0,66552.0,0.002924]
[1721749894195,1.05178,66553.0,66552.0,0.015924]
[1721749894367,0.15027,66547.0,66534.0,0.300593]
[1721749894589,0.15027,66547.0,66539.0,0.150287]
[1721749894590,0.12348942,66542.0,66539.0,0.150287]
[1721749894709,0.002794,66541.0,66540.0,0.19172895]
[1721749894909,0.12348942,66542.0,66540.0,0.22933669]
[1721749895137,0.12348942,66542.0,66540.0,0.24481465]
[1721749895138,0.22348942,66542.0,66540.0,0.24481465]
[1721749895375,0.22348942,66542.0,66534.0,0.300594]
[1721749895376,0.379883,66541.0,66531.0,1.039]
[1721749895584,0.05,66538.0,66533.0,0.19096128]
[1721749895785,0.15,66538.0,66534.0,0.19423937]
[1721749895990,0.05,66538.0,66535.0,0.19096128]
[1721749896201,0.0796,66541.0,66536.0,0.04394137]
[1721749896408,0.0796,66541.0,66537.0,0.19096128]
[1721749896610,0.002794,66540.0,66539.0,0.150287]
[1721749896812,0.0806,66541.0,66539.0,0.29730691]
[1721749897219,0.0806,66541.0,66540.0,0.29730491]
[1721749897426,0.0806,66541.0,66540.0,0.21932559]
[1721749897631,0.0806,66541.0,66540.0,0.21232559]
[1721749897846,0.0796,66541.0,66540.0,0.21232559]
[1721749898253,0.0806,66541.0,66540.0,0.14701991]
[1721749898457,0.1306,66541.0,66540.0,0.14701991]
[1721749898631,0.05,66538.0,66534.0,0.060192]
[1721749898834,0.05,66538.0,66537.0,0.150292]
[1721749899049,0.0816,66541.0,66540.0,0.150285]
[1721749899247,0.0816,66541.0,66540.0,0.59787591]
[1721749899546,0.0806,66541.0,66540.0,0.59787591]
[1721749900084,0.0796,66541.0,66540.0,0.59787591]
[1721749900284,0.0796,66541.0,66540.0,0.69825703]
[1721749900582,0.0796,66541.0,66540.0,0.007]
[1721749900583,0.2306,66541.0,66540.0,0.007]